bitfinex-derivatives/quotes_SOLF0:USTF0_20241009
["timestamp","ask_amount","ask_price","bid_price","bid_amount"]
[1728483352658,3.5351,141.55,141.52,3.5355]
[1728483352862,3.5351,141.55,141.53,5.78903168]
[1728483353063,3.5351,141.55,141.52,3.5355]
[1728483353262,3.5351,141.55,141.53,5.7884973]
[1728483353567,3.5351,141.55,141.52,3.5355]
[1728483353763,3.5351,141.55,141.53,5.78604095]
[1728483354061,3.5351,141.55,141.52,3.5355]
[1728483354263,6.48,141.6,141.53,5.78401601]
[1728483354264,3.5354,141.54,141.53,5.78401601]
[1728483354458,6.48,141.6,141.51,4.8533]
[1728483354663,6.48,141.6,141.52,5.78294051]
[1728483354967,3.535,141.55,141.53,5.78136017]
[1728483355166,3.535,141.55,141.52,3.5356]
[1728483357164,0.12502,141.59,141.52,16.98]
[1728483357362,6.60502,141.59,141.54,3.535]
[1728483357567,6.60502,141.59,141.55,1.4441]
[1728483357866,3.5342,141.58,141.55,1.4441]
[1728483358363,3.5342,141.58,141.55,4.979]
[1728483358559,3.5342,141.58,141.55,1.4441]
[1728483359359,3.65912,141.59,141.55,1.4441]
[1728483359658,3.65912,141.59,141.56,3.5346]
[1728483359864,0.12502,141.59,141.55,1.4441]
[1728483360064,3.65912,141.59,141.55,1.4441]
[1728483360557,0.12502,141.59,141.55,1.4441]
[1728483361265,6.48,141.64,141.56,16.98]
[1728483361470,6.48,141.64,141.57,1.4118]
[1728483361661,6.48,141.64,141.58,3.5341]
[1728483361865,3.5336,141.61,141.59,6.00538535]
[1728483362166,3.5336,141.61,141.57,4.946]
[1728483362367,3.5336,141.61,141.58,6.00539113]
[1728483362563,3.5332,141.62,141.58,6.00539113]
[1728483362762,3.5332,141.62,141.59,6.00539113]
[1728483362963,6.48,141.64,141.58,3.534]
[1728483363159,6.48,141.64,141.59,6.00250646]
[1728483363367,6.48,141.64,141.58,3.534]
[1728483363560,0.12502,141.65,141.59,6.00061358]
[1728483363761,3.5331,141.63,141.6,9.53332545]
[1728483364068,0.12502,141.65,141.58,16.98]
[1728483364264,3.5327,141.64,141.6,3.5335]
[1728483364466,3.5327,141.64,141.61,1.4155]
[1728483365167,0.12502,141.65,141.62,5.99413816]
[1728483365371,0.12502,141.65,141.61,1.4155]
[1728483365665,0.12502,141.65,141.62,5.99299658]
[1728483365876,0.12502,141.65,141.61,1.4155]
[1728483366364,3.5328,141.64,141.61,1.4155]
[1728483366566,0.12502,141.65,141.61,1.4155]
[1728483367269,17.10502,141.65,141.61,1.4155]
[1728483367464,3.5327,141.64,141.61,1.4155]
[1728483368272,3.5327,141.64,141.62,5.98502709]
[1728483368459,0.12502,141.65,141.61,1.4155]
[1728483368666,0.12502,141.65,141.62,5.98126847]
[1728483368860,0.12502,141.65,141.63,5.98126847]
[1728483369065,0.12502,141.65,141.61,1.4155]
[1728483369266,0.12502,141.65,141.62,15.54824931]
[1728483369466,0.12502,141.65,141.63,5.98009589]
[1728483369761,0.12502,141.65,141.64,5.98009589]
[1728483370373,3.532,141.67,141.64,5.98009589]
[1728483370574,3.532,141.67,141.65,5.98009589]
[1728483370762,3.532,141.67,141.64,3.5325]
[1728483370963,3.532,141.67,141.62,18.3066]
[1728483370964,3.5317,141.68,141.65,5.97177707]
[1728483371168,3.5317,141.68,141.66,5.97177707]
[1728483371369,3.5317,141.68,141.62,18.3066]
[1728483371575,6.48,141.7,141.62,18.3066]
[1728483371576,3.5315,141.69,141.63,15.5150008]
[1728483371877,3.5315,141.69,141.64,15.5150008]
[1728483372174,3.5315,141.69,141.63,1.33]
[1728483372175,3.5315,141.69,141.65,19.04461521]
[1728483372366,3.5315,141.69,141.66,5.96631354]
[1728483372562,3.5315,141.69,141.67,5.96204186]
[1728483372763,3.5315,141.69,141.66,3.5322]
[1728483372963,0.12502,141.71,141.67,5.96218986]
[1728483373173,0.12502,141.71,141.68,5.96218986]
[1728483373376,0.12502,141.71,141.64,16.98]
[1728483373672,3.5316,141.69,141.65,3.5323]
[1728483373870,3.5316,141.69,141.65,13.06657008]
[1728483374079,3.5316,141.69,141.66,5.9589188]
[1728483374275,3.5312,141.7,141.67,7.4057188]
[1728483374573,3.5312,141.7,141.68,5.9589188]
[1728483374875,3.5312,141.7,141.67,1.4468]
[1728483375073,3.5312,141.7,141.68,5.95606103]
[1728483375273,3.5312,141.7,141.67,1.4468]
[1728483375469,3.5312,141.7,141.68,5.95232969]
[1728483375671,17.10502,141.71,141.67,1.4468]
[1728483376069,0.12502,141.71,141.67,1.4468]
[1728483376265,3.5316,141.69,141.67,1.4468]
[1728483376465,0.12502,141.71,141.67,1.4468]
[1728483376869,3.65612,141.71,141.68,9.48149032]
[1728483377067,3.65612,141.71,141.67,1.4468]
[1728483377068,0.12502,141.71,141.67,1.4468]
[1728483377275,83.3776,141.8,141.69,16.98]
[1728483377477,6.48,141.79,141.71,16.98]
[1728483378176,3.5293,141.78,141.74,3.5301]
[1728483378376,0.12502,141.83,141.72,33.6]
[1728483378377,6.48,141.8,141.72,33.6]
[1728483378577,6.48,141.8,141.73,1.4359]
[1728483378777,6.48,141.8,141.74,3.5301]
[1728483378981,6.48,141.8,141.74,1.3751]
[1728483379175,0.12502,141.83,141.74,1.3751]
[1728483379673,6.58502,141.83,141.74,28.4951]
[1728483380677,3.5289,141.8,141.76,3.5296]
[1728483380984,0.12502,141.83,141.76,33.58]
[1728483381172,0.12502,141.83,141.79,27.12]
[1728483381480,0.12502,141.83,141.82,3.5282]
[1728483381780,0.12502,141.83,141.8,7.7827]
[1728483381977,0.12502,141.83,141.81,3.5283]
[1728483382480,0.12502,141.83,141.8,7.7827]
[1728483382780,0.12502,141.83,141.82,3.5282]
[1728483382974,0.12502,141.83,141.8,9.1603]
[1728483383174,0.12502,141.83,141.8,1.3227]
[1728483383575,3.5284,141.81,141.8,1.3227]
[1728483383772,0.12502,141.83,141.75,27.12]
[1728483383977,0.12502,141.83,141.76,1.3537]
[1728483385588,0.12502,141.83,141.76,4.8832]
[1728483385781,0.12502,141.83,141.76,1.3537]
[1728483386282,3.5286,141.81,141.77,3.5293]
[1728483386675,0.12502,141.83,141.76,1.3537]
[1728483386986,3.5285,141.81,141.77,3.5294]
[1728483387183,0.12502,141.83,141.76,1.3537]
[1728483387685,3.5285,141.81,141.76,4.8833]
[1728483387886,0.12502,141.83,141.76,1.3537]
[1728483388180,3.5291,141.79,141.76,1.3537]
[1728483388380,3.58118886,141.82,141.76,1.3537]
[1728483388786,6.44,141.81,141.76,1.3537]
[1728483388991,33.56,141.81,141.73,1.4206]
[1728483389286,27.12,141.79,141.72,1.4369]
[1728483389479,3.5303,141.74,141.72,1.4369]
[1728483389681,6.44,141.77,141.72,1.4369]
[1728483391081,3.5301,141.75,141.72,1.4369]
[1728483391292,6.44,141.77,141.72,1.4369]
[1728483391986,6.44,141.77,141.71,0.12502]
[1728483392188,3.5303,141.74,141.71,0.12502]
[1728483393093,3.5301,141.75,141.71,3.65592]
[1728483393289,6.44,141.77,141.71,0.12502]
[1728483393591,6.44,141.79,141.71,0.12502]
[1728483394183,6.44,141.79,141.73,27.12]
[1728483394382,6.44,141.82,141.74,1.3938]
[1728483395089,3.5287,141.8,141.75,1.3903]
[1728483395587,3.5287,141.8,141.76,3.5295]
[1728483395986,3.5287,141.8,141.75,1.3903]
[1728483396181,6.44,141.82,141.75,4.9201]
[1728483396384,6.44,141.82,141.75,1.3903]
[1728483396789,6.44,141.82,141.77,3.5292]
[1728483397189,3.5286,141.81,141.77,3.5292]
[1728483397587,6.44,141.82,141.76,3.5296]
[1728483397787,0.12502,141.83,141.75,28.5103]
[1728483397987,0.12502,141.83,141.77,27.12]
[1728483398285,0.12502,141.83,141.8,3.5286]
[1728483398485,0.12502,141.83,141.77,27.12]
[1728483398687,0.12502,141.83,141.79,3.5287]
[1728483399184,3.65302,141.83,141.79,3.5287]
[1728483399490,0.12502,141.83,141.78,1.4515]
[1728483399692,3.5286,141.81,141.78,1.4515]
[1728483400691,0.12502,141.83,141.78,1.4515]
[1728483400895,0.12502,141.83,141.76,3.5296]
[1728483401290,3.5286,141.81,141.75,1.3903]
[1728483401490,0.12502,141.83,141.76,3.5296]
[1728483401790,0.12502,141.83,141.75,1.3903]
[1728483401989,0.12502,141.83,141.77,3.5293]
[1728483402189,0.12502,141.83,141.75,1.3903]
[1728483402487,3.5285,141.81,141.77,3.5293]
[1728483403993,3.5288,141.8,141.75,1.3903]
[1728483404298,0.12502,141.83,141.75,1.3903]
[1728483404498,3.5286,141.81,141.77,3.5293]
[1728483405497,0.12502,141.83,141.75,1.3903]
[1728483406205,3.5291,141.79,141.75,4.9201]
[1728483406398,0.12502,141.83,141.75,4.9201]
[1728483406798,3.5291,141.79,141.75,4.9201]
[1728483407904,3.5291,141.79,141.75,1.3903]
[1728483408103,0.12502,141.83,141.75,1.3903]
[1728483408909,3.5286,141.81,141.77,3.5293]
[1728483409708,0.12502,141.83,141.77,27.12]
[1728483410208,0.12502,141.83,141.78,1.3532]
[1728483410408,0.12502,141.83,141.78,7.7932]
[1728483410607,0.12502,141.83,141.8,3.5286]
[1728483410809,0.12502,141.83,141.78,7.7932]
[1728483411309,3.5283,141.82,141.79,3.5288]
[1728483413707,0.12502,141.83,141.78,7.7932]
[1728483414211,33.56,141.82,141.75,1.3903]
[1728483414415,20.42975456,141.81,141.75,1.3903]
[1728483414612,16.95,141.81,141.75,1.3903]
[1728483414805,27.69,141.82,141.72,1.3175]
[1728483415013,16.95,141.76,141.71,0.12502]
[1728483415214,16.95,141.74,141.71,0.12502]
[1728483415413,6.44,141.74,141.71,0.12502]
[1728483415915,23.39,141.74,141.71,0.12502]
[1728483416217,16.95,141.72,141.71,0.12502]
[1728483416414,3.5307,141.72,141.71,0.12502]
[1728483419617,3.5305,141.73,141.71,0.12502]
[1728483420912,3.5307,141.72,141.71,0.12502]
[1728483423520,28.1267,141.79,141.71,0.12502]
[1728483423922,9.9694,141.78,141.73,3.5304]
[1728483424220,6.44,141.78,141.72,1.3217]
[1728483424421,3.5303,141.74,141.72,1.3217]
[1728483424621,6.44,141.78,141.72,1.3217]
[1728483425121,3.5303,141.74,141.72,1.3217]
[1728483425822,6.44,141.78,141.71,0.12502]
[1728483426114,3.5307,141.72,141.71,0.12502]
[1728483427716,6.44,141.73,141.71,0.12502]
[1728483428019,6.44,141.77,141.71,0.12502]
[1728483428221,3.5302,141.74,141.71,3.65592]
[1728483428523,6.44,141.77,141.71,0.12502]
[1728483428921,3.5298,141.76,141.72,3.5305]
[1728483429221,1.3283,141.81,141.71,0.12502]
[1728483429621,6.44,141.8,141.71,0.12502]
[1728483429921,3.529,141.79,141.75,3.5298]
[1728483430217,6.44,141.8,141.72,1.3182]
[1728483430715,6.44,141.8,141.72,2.7263]
[1728483431117,80.66715,141.82,141.72,2.7263]
[1728483431422,3.5288,141.8,141.76,3.5295]
[1728483432321,9.9686,141.81,141.77,3.5294]
[1728483433321,3.5288,141.8,141.76,3.5296]
[1728483434926,3.5288,141.8,141.72,36.2863]
[1728483435115,0.12502,141.83,141.72,36.2863]
[1728483435317,9.9682,141.82,141.72,36.2863]
[1728483435520,6.44,141.82,141.72,36.2863]
[1728483435821,3.5286,141.81,141.77,3.5293]
[1728483436020,3.5286,141.81,141.72,36.2863]
[1728483436319,3.5286,141.81,141.74,3.53]
[1728483436512,3.5287,141.8,141.75,1.3416]
[1728483436917,3.5287,141.8,141.77,3.5293]
[1728483437626,3.5285,141.81,141.78,3.529]
[1728483437826,6.44,141.82,141.75,1.3416]
[1728483438023,10.01579419,141.82,141.75,1.3416]
[1728483438323,3.5294,141.78,141.75,4.8714]
[1728483439122,27.12,141.81,141.75,1.3416]
[1728483439517,3.5296,141.77,141.75,1.3416]
[1728483439729,6.42,141.8,141.75,1.3416]
[1728483440829,3.5297,141.76,141.75,1.3416]
[1728483441127,27.12,141.79,141.72,1.3182]
[1728483441327,3.5295,141.77,141.73,3.5304]
[1728483441827,3.5297,141.76,141.73,3.5304]
[1728483442028,27.12,141.79,141.72,1.3182]
[1728483442322,3.5307,141.72,141.71,0.12502]
[1728483442528,16.95,141.72,141.71,0.12502]
[1728483442919,9.92329446,141.74,141.71,0.12502]
[1728483442920,6.42,141.74,141.71,0.12502]
[1728483443823,23.37,141.78,141.71,0.12502]
[1728483444131,3.5297,141.77,141.72,3.5306]
[1728483444429,23.37,141.78,141.71,0.12502]
[1728483444823,3.5296,141.77,141.73,3.5303]
[1728483446330,23.37,141.78,141.71,0.12502]
[1728483446631,3.5297,141.76,141.72,3.5306]
[1728483447335,3.5296,141.77,141.73,3.5304]
[1728483448042,16.95,141.8,141.71,0.12502]
[1728483448223,6.42,141.8,141.73,16.95]
[1728483448535,6.42,141.81,141.74,1.3116]
[1728483448729,9.9486,141.81,141.77,3.5293]
[1728483451131,6.42,141.81,141.74,1.3116]
[1728483451434,6.42,141.81,141.79,3.5289]
[1728483451633,6.42,141.81,141.75,1.4171]
[1728483452136,6.42,141.81,141.78,3.529]
[1728483452531,6.42,141.81,141.75,1.4171]
[1728483452532,23.37,141.81,141.75,1.4171]
[1728483452733,23.37,141.81,141.76,3.5296]
[1728483453238,23.37,141.81,141.75,1.4171]
[1728483453434,23.37,141.81,141.75,4.9469]
[1728483453639,23.37,141.81,141.75,1.4171]
[1728483453833,26.8985,141.81,141.76,3.5295]
[1728483454030,26.8985,141.81,141.75,1.4171]
[1728483454228,20.4785,141.81,141.75,1.4171]
[1728483454431,3.5287,141.8,141.75,1.4171]
[1728483455334,20.4786,141.81,141.75,1.4171]
[1728483456031,3.5283,141.82,141.75,18.3671]
[1728483456341,3.5283,141.82,141.75,19.7715]
[1728483457236,23.49502,141.83,141.75,19.7715]
[1728483457440,27.02312,141.83,141.75,19.7715]
[1728483457740,23.49502,141.83,141.75,19.7715]
[1728483457937,0.12502,141.83,141.75,19.7715]
[1728483458144,0.12502,141.83,141.8,3.5285]
[1728483458444,3.65302,141.83,141.8,3.5285]
[1728483458647,0.12502,141.83,141.8,3.5285]
[1728483459643,0.12502,141.83,141.77,20.51223529]
[1728483459842,0.12502,141.83,141.82,3.5282]
[1728483460243,0.12502,141.83,141.81,3.5284]
[1728483460544,0.12502,141.83,141.77,9.98223529]
[1728483460951,0.12502,141.83,141.8,3.5285]
[1728483461638,3.65302,141.83,141.8,3.5285]
[1728483462537,3.65302,141.83,141.79,3.5288]
[1728483462947,3.5284,141.82,141.77,6.42]
[1728483463246,0.12502,141.83,141.78,3.5291]
[1728483463448,0.12502,141.83,141.77,6.42]
[1728483463751,3.5283,141.82,141.79,3.5287]
[1728483464048,0.12502,141.83,141.79,3.5287]
[1728483464251,3.5282,141.82,141.79,3.5287]
[1728483465246,0.12502,141.83,141.77,6.42]
[1728483465446,3.65312,141.83,141.8,3.5286]
[1728483465856,3.65312,141.83,141.77,26.97372693]
[1728483466058,3.65312,141.83,141.77,23.37]
[1728483466756,3.65312,141.83,141.8,3.5286]
[1728483469966,3.65312,141.83,141.79,3.5288]
[1728483469967,3.5284,141.82,141.79,3.5288]
[1728483470350,0.12502,141.83,141.77,23.37]
[1728483470560,0.12502,141.83,141.81,3.5284]
[1728483470954,0.12502,141.83,141.82,7.42675936]
[1728483471162,0.12502,141.83,141.82,35.82860846]
[1728483472664,0.12502,141.83,141.8,3.5286]
[1728483472665,3.65302,141.83,141.8,3.5286]
[1728483472866,0.12502,141.83,141.82,28.39675756]
[1728483473062,16.95,141.86,141.82,30.93771309]
[1728483473261,16.95,141.86,141.85,8.67133235]
[1728483473465,16.95,141.86,141.85,47.24475118]
[1728483474075,16.95,141.86,141.85,38.57341883]
[1728483474374,20.4772,141.86,141.85,38.57341883]
[1728483476168,16.95,141.86,141.81,3.5284]
[1728483476372,3.5278,141.84,141.82,19.0769358]
[1728483476676,3.5278,141.84,141.83,11.19370152]
[1728483477768,3.5278,141.84,141.81,3.5284]
[1728483477970,3.5278,141.84,141.8,4.9335]
[1728483478367,3.5278,141.84,141.82,23.91224544]
[1728483478572,3.5278,141.84,141.83,12.07867695]
[1728483478771,3.5278,141.84,141.83,26.2693574]
[1728483478976,16.95,141.86,141.83,36.89576918]
[1728483479175,3.5277,141.85,141.83,36.89576918]
[1728483479378,6.4,141.87,141.83,36.89576918]
[1728483479579,6.4,141.87,141.83,24.81709223]
[1728483480076,3.5273,141.86,141.83,24.81709223]
[1728483480477,3.5273,141.86,141.84,7.54917309]
[1728483480675,9.9268,141.88,141.84,7.54917309]
[1728483481073,6.4,141.88,141.84,7.54917309]
[1728483481371,0.12502,141.89,141.85,7.54917309]
[1728483481679,0.12502,141.89,141.86,13.70630056]
[1728483481867,0.12502,141.89,141.87,7.54917309]
[1728483482073,0.12502,141.89,141.82,14.65973536]
[1728483482272,0.12502,141.89,141.83,13.48536522]
[1728483482472,0.12502,141.89,141.84,7.32971194]
[1728483482673,0.12502,141.89,141.85,3.5273]
[1728483483283,3.5268,141.88,141.84,3.5276]
[1728483484080,3.5268,141.88,141.85,3.5274]
[1728483484381,3.5268,141.88,141.81,26.0949]
[1728483484578,3.5268,141.88,141.84,3.5276]
[1728483485280,0.12502,141.89,141.81,26.0949]
[1728483485484,0.12502,141.89,141.86,3.527]
[1728483485880,0.12502,141.89,141.82,16.95]
[1728483486082,3.65162,141.89,141.85,3.5273]
[1728483486382,16.95,141.88,141.81,9.1449]
[1728483486579,10.84,141.85,141.82,9.06016584]
[1728483486784,10.84,141.85,141.82,3.5281]
[1728483486981,10.84,141.85,141.81,2.7449]
[1728483487177,3.5277,141.84,141.81,6.2733]
[1728483487886,14.3677,141.84,141.81,6.2733]
[1728483488387,3.528,141.83,141.81,6.2733]
[1728483488581,3.528,141.83,141.81,2.7449]
[1728483488779,10.84,141.84,141.81,2.7449]
[1728483488984,14.3678,141.84,141.81,2.7449]
[1728483489178,14.3678,141.84,141.81,6.2732]
[1728483489882,3.528,141.83,141.81,6.2732]
[1728483490190,10.84,141.84,141.81,6.2732]
[1728483490382,14.3678,141.84,141.82,5.53823265]
[1728483490587,14.3678,141.84,141.81,6.2732]
[1728483490990,14.3678,141.84,141.82,5.54013884]
[1728483491181,14.3678,141.84,141.81,6.2732]
[1728483491586,10.84,141.84,141.81,6.2732]
[1728483491786,3.5281,141.83,141.81,2.7449]
[1728483492795,3.5281,141.83,141.81,6.2733]
[1728483493291,3.5281,141.83,141.82,5.54230689]
[1728483493788,14.3681,141.83,141.82,5.54230689]
[1728483495692,14.3681,141.83,141.8,1.405]
[1728483495693,10.84,141.83,141.8,1.405]
[1728483495988,10.84,141.81,141.77,1.53322]
[1728483496196,27.65,141.87,141.77,1.53322]
[1728483496197,10.84,141.79,141.78,12.00801509]
[1728483496392,10.84,141.79,141.77,0.12502]
[1728483496697,6.4,141.84,141.8,3.5286]
[1728483496892,3.5279,141.84,141.81,5.55053464]
[1728483497085,3.5279,141.84,141.8,14.3686]
[1728483497285,3.5279,141.84,141.81,12.01253146]
[1728483497494,6.4,141.85,141.82,5.55016761]
[1728483497693,10.84,141.84,141.79,10.84]
[1728483497893,10.84,141.84,141.8,5.55106802]
[1728483498092,3.5281,141.83,141.79,14.3689]
[1728483498290,3.5281,141.83,141.79,10.84]
[1728483498495,10.84,141.84,141.8,9.08037892]
[1728483498800,3.5278,141.84,141.81,5.55173643]
[1728483498991,3.5278,141.84,141.8,3.5286]
[1728483499193,3.528,141.83,141.81,5.55181288]
[1728483499495,3.528,141.83,141.8,3.5286]
[1728483499696,3.5282,141.82,141.81,5.55264059]
[1728483499993,16.94,141.84,141.78,4.9374]
[1728483500189,16.94,141.84,141.79,5.55285738]
[1728483500390,16.94,141.82,141.8,5.55285738]
[1728483500701,16.94,141.82,141.77,0.12502]
[1728483500991,3.5291,141.79,141.78,5.5545657]
[1728483501505,1.28011296,141.79,141.78,5.5545657]
[1728483501794,2.56022534,141.79,141.78,11.83214001]
[1728483501992,1.27205968,141.79,141.77,0.12502]
[1728483502394,1.27205968,141.79,141.78,15.36477781]
[1728483502588,1.27205968,141.79,141.78,24.25758282]
[1728483502793,3.5283,141.82,141.78,30.77310528]
[1728483503091,3.5283,141.82,141.79,24.25718282]
[1728483503289,3.5283,141.82,141.8,14.45080814]
[1728483503491,3.5283,141.82,141.81,14.45080814]
[1728483503999,4.77877634,141.82,141.81,14.45080814]
[1728483504200,6.02925237,141.82,141.81,14.45080814]
[1728483504387,2.50095237,141.82,141.81,14.45080814]
[1728483504595,1.25047634,141.82,141.81,33.46809048]
[1728483505686,1.25047634,141.82,141.81,44.58522868]
[1728483505888,6.02911748,141.82,141.81,26.91112436]
[1728483506088,6.02911748,141.82,141.81,21.39901738]
[1728483506896,6.02911748,141.82,141.81,5.55800313]
[1728483507192,3.5282,141.82,141.81,5.55800313]
[1728483507393,3.5282,141.82,141.81,22.26637298]
[1728483507592,16.94,141.83,141.81,22.26637298]
[1728483507815,16.94,141.86,141.82,5.55800313]
[1728483508099,6.38,141.85,141.83,5.55800313]
[1728483508397,6.38,141.85,141.84,5.55800313]
[1728483508698,23.32,141.85,141.84,5.55800313]
[1728483508905,26.8475,141.85,141.84,5.55800313]
[1728483509598,23.32,141.85,141.77,3.69420921]
[1728483509800,23.32,141.85,141.84,6.0684165]
[1728483509997,23.32,141.85,141.84,6.06583026]
[1728483510198,26.8477,141.85,141.84,6.06583026]
[1728483510397,9.9077,141.85,141.84,6.06583026]
[1728483510597,9.9077,141.85,141.84,22.64327214]
[1728483511695,9.9077,141.85,141.84,15.77095001]
[1728483512305,16.94,141.86,141.84,15.77095001]
[1728483512598,9.9069,141.88,141.85,15.77095001]
[1728483512798,1.13022,141.89,141.86,6.06583026]
[1728483513110,0.12502,141.89,141.87,15.77393405]
[1728483513301,17.06502,141.89,141.88,6.06583026]
[1728483513600,17.06502,141.89,141.82,1.3691]
[1728483513794,17.06502,141.89,141.83,38.50080561]
[1728483513995,17.06502,141.89,141.84,45.1169384]
[1728483514190,17.06502,141.89,141.85,34.53112594]
[1728483514399,17.06502,141.89,141.86,15.77776809]
[1728483514602,17.06502,141.89,141.87,6.06798804]
[1728483514796,17.06502,141.89,141.88,6.06798804]
[1728483515705,17.06502,141.89,141.82,1.3691]
[1728483515903,17.06502,141.89,141.83,6.11433304]
[1728483516104,17.06502,141.89,141.82,1.3691]
[1728483516303,3.5268,141.88,141.84,3.5276]
[1728483516806,6.54813634,141.87,141.84,3.5276]
[1728483517006,6.54813634,141.86,141.83,3.5279]
[1728483517210,6.54813634,141.86,141.82,1.3691]
[1728483517405,6.54813634,141.86,141.81,2.7193]
[1728483517406,23.48813634,141.85,141.81,2.7193]
[1728483517704,23.48813634,141.85,141.81,1.3405]
[1728483517705,10.07593634,141.84,141.81,1.3405]
[1728483517905,6.54813634,141.83,141.81,1.3405]
[1728483518104,6.54813634,141.82,141.81,1.3405]
[1728483518305,6.54813634,141.82,141.81,4.8689]
[1728483519702,6.38,141.86,141.81,1.3405]
[1728483520007,3.5274,141.85,141.83,3.5279]
[1728483520507,9.9073,141.86,141.83,3.5279]
[1728483520900,9.9073,141.86,141.85,3.5274]
[1728483520901,6.38,141.86,141.85,3.5274]
[1728483521105,23.44502,141.89,141.85,3.5274]
[1728483521305,17.06502,141.89,141.85,3.5274]
[1728483521509,16.94,141.87,141.81,1.3405]
[1728483522209,3.5277,141.85,141.81,4.8688]
[1728483522404,3.5277,141.85,141.81,1.3405]
[1728483523000,3.5277,141.85,141.82,3.528]
[1728483523206,3.5269,141.88,141.81,1.3405]
[1728483523511,0.12502,141.89,141.84,3.5275]
[1728483523902,3.5269,141.88,141.81,1.3405]
[1728483524509,3.5269,141.88,141.85,3.5274]
[1728483524706,3.5267,141.88,141.82,16.94]
[1728483524912,3.5267,141.88,141.83,2.7379]
[1728483525110,3.5267,141.88,141.85,3.5272]
[1728483525313,0.12502,141.89,141.83,2.7379]
[1728483525527,0.12502,141.89,141.84,16.94]
[1728483525907,3.65162,141.89,141.83,2.7379]
[1728483526416,3.65162,141.89,141.86,3.527]
[1728483526613,3.5269,141.88,141.83,2.7379]
[1728483526922,17.06502,141.89,141.83,6.2657]
[1728483527220,3.5273,141.86,141.83,6.2657]
[1728483528122,3.5273,141.86,141.83,2.7379]
[1728483528324,3.5273,141.86,141.83,6.2657]
[1728483528725,3.5273,141.86,141.84,3.5276]
[1728483528924,3.5271,141.87,141.84,3.5276]
[1728483529931,17.06502,141.89,141.83,2.7379]
[1728483529932,3.5268,141.88,141.85,3.5273]
[1728483530233,0.12502,141.89,141.83,2.7379]
[1728483530423,17.06502,141.89,141.83,2.7379]
[1728483530619,3.5276,141.85,141.83,6.2658]
[1728483530917,3.5276,141.85,141.81,1.3405]
[1728483531220,3.5282,141.83,141.81,1.3405]
[1728483531418,20.53928177,141.86,141.81,1.3405]
[1728483531623,16.94,141.84,141.81,1.3405]
[1728483531825,16.94,141.82,141.77,0.12502]
[1728483532029,16.94,141.8,141.77,0.12502]
[1728483532226,23.3,141.8,141.77,0.12502]
[1728483532427,3.5292,141.78,141.77,0.12502]
[1728483532636,6.36,141.8,141.77,0.12502]
[1728483532831,3.5291,141.79,141.77,0.12502]
[1728483533425,3.5292,141.78,141.77,0.12502]
[1728483533835,16.94,141.79,141.77,0.12502]
[1728483534035,3.5291,141.79,141.77,0.12502]
[1728483534328,16.94,141.79,141.77,0.12502]
[1728483534528,20.4692,141.78,141.77,0.12502]
[1728483534831,16.94,141.78,141.72,1.3896]
[1728483535042,3.5304,141.74,141.72,1.3896]
[1728483535234,23.3,141.76,141.72,1.3896]
[1728483535531,26.8298,141.76,141.71,0.12502]
[1728483535738,9.8898,141.76,141.71,0.12502]
[1728483537038,9.8898,141.76,141.71,3.65572]
[1728483537536,9.8898,141.76,141.72,3.5307]
[1728483537737,9.8898,141.76,141.71,0.12502]
[1728483537738,6.36,141.76,141.71,0.12502]
[1728483537938,6.36,141.76,141.71,17.06502]